[Event "Baku Open 2018"]
[Site "Baku"]
[Date "2018.12.01"]
[Round "8"]
[White "Safarli, Eltaj"]
[Black "Gasanov, Eldar"]
[Result "1-0"]
[ECO "B24"]
[WhiteElo "2671"]
[BlackElo "2502"]
[Annotator "RC"]
[PlyCount "103"]
[EventDate "2018.11.24"]
[EventType "swiss"]
[EventCountry "AZE"]
[SourceTitle "playchess.com"]
[Source "ChessBase"]
[SourceQuality "1"]
[TimeControl "40/5400+30:1800+30"]

1. e4 {[%emt 0:00:00]} c5 {[%emt 0:00:00]} 2. Nc3 {[%emt 0:00:02]} Nc6 {[%emt 0:00:54]} 3. Bb5 {[%emt 0:00:06]} Nd4 {[%emt 0:01:10]} 4. Nf3 {[%emt 0:00:15]} Nxb5 {[%emt 0:01:20]} 5. Nxb5 {[%emt 0:00:03]} d6 {[%emt 0:02:23]} 6. d4 {[%emt 0:00:09]} Nf6 {[%emt 0:04:58]} 7. Qd3 {[%emt 0:00:40]} a6 {[%emt 0:06:13]} 8. Nc3 {[%emt 0:02:20]} cxd4 {[%emt 0:00:44]} 9. Nxd4 {[%emt 0:00:07]} e6 {[%emt 0:03:59]} 10. Bg5 {[%emt 0:01:06]} Be7 {[%emt 0:01:44]} 11. O-O-O {[%emt 0:04:21]} Qc7 {[%emt 0:05:17]} 12. f4 {[%emt 0:11:24]} h6 {[%emt 0:14:38]} 13. Bh4 {[%emt 0:06:01]} O-O {[%emt 0:06:28]} 14. Rhe1 {[%emt 0:13:47]} Rd8 {[%emt 0:07:33]} 15. g4 {[%emt 0:13:30]} Nxe4 {[%emt 0:10:12]} 16. Bxe7 {[%emt 0:04:27]} Nc5 {[%emt 0:00:49]} 17. Qg3 {[%emt 0:01:24]} Qxe7 {[%emt 0:00:18]} 18. b4 {[%emt 0:00:18]} Nd7 {[%emt 0:01:16]} 19. Nd5 {[%emt 0:00:31]} Qf8 {[%emt 0:01:54]} 20. Nc7 {[%emt 0:02:04]} Nb6 {[%emt 0:03:01]} 21. Nxa8 {[%emt 0:01:39]} Nxa8 {[%emt 0:00:05]} 22. g5 {[%emt 0:02:47]} hxg5 {[%emt 0:03:12]} 23. Qxg5 {[%emt 0:03:36]} f6 {[%emt 0:03:32]} 24. Qh4 {[%emt 0:03:23]} Nc7 {[%emt 0:03:20]} 25. Nb3 {[%emt 0:02:01]} d5 {[%emt 0:04:37]} 26. Rg1 {[%emt 0:01:38]} Ne8 {[%emt 0:01:42]} 27. a3 {[%emt 0:03:39]} Nd6 {[%emt 0:01:18]} 28. Nd4 {[%emt 0:00:08]} Re8 {[%emt 0:01:18]} 29. Rg6 {[%emt 0:03:30]} e5 {[%emt 0:00:53]} 30. fxe5 {[%emt 0:01:27]} Rxe5 {[%emt 0:00:30]} 31. Rdg1 {[%emt 0:01:21]} Ne8 {[%emt 0:02:15]} 32. Rh6 {[%emt 0:00:48]} Qe7 {[%emt 0:02:17]} 33. Rh8+ {[%emt 0:00:14]} Kf7 {[%emt 0:00:02]} 34. Qh7 {[%emt 0:03:26]} Re1+ {[%emt 0:02:54]} 35. Rxe1 {[%emt 0:01:57]} Qxe1+ {[%emt 0:00:04]} 36. Kb2 {[%emt 0:00:04]} Bd7 {[%emt 0:01:47]} 37. Qg8+ {[%emt 0:02:26]} Ke7 {[%emt 0:00:17]} 38. Qxd5 {[%emt 0:03:06]} Nd6 {[%emt 0:02:13]} 39. Qg8 {[%emt 0:01:23]} Ne8 {[%emt 0:01:24]} 40. Qf8+ {[%emt 0:00:00]} Kd8 {[%emt 0:00:00]} 41. Qxg7 {[%emt 0:07:39]} Qe5 {[%emt 0:01:55]} 42. Qg1 {[%emt 0:00:21]} f5 {[%emt 0:00:13]} 43. Rg8 {[%emt 0:11:22]} Be6 {[%emt 0:02:10]} 44. Rg2 {[%emt 0:03:25]} Nd6 {[%emt 0:03:18]} 45. Re2 {[%emt 0:00:23]} Ne4 {[%emt 0:00:13]} 46. c3 {[%emt 0:04:40]} Kc8 {[%emt 0:02:44]} 47. Qg6 {[%emt 0:03:13]} Bc4 {[%emt 0:05:12]} 48. Rg2 {[%emt 0:01:02]} Nd6 {[%emt 0:02:37]} 49. Qg7 {[%emt 0:01:17]} Qe8 {[%emt 0:01:42]} 50. Qf6 {[%emt 0:01:32]} Bd5 {[%emt 0:04:01]} 51. Re2 {[%emt 0:02:00]} Nc4+ {[%emt 0:00:35]} 52. Kc1 {[%emt 0:00:11]} 1-0

[Event "Baku Open 2018"]
[Site "Baku"]
[Date "2018.12.01"]
[Round "8"]
[White "Mgeladze, Tamaz"]
[Black "Bashirli, Nail"]
[Result "1-0"]
[ECO "A22"]
[WhiteElo "2395"]
[BlackElo "2331"]
[Annotator "NA"]
[PlyCount "88"]
[EventDate "2018.11.24"]
[EventType "swiss"]
[EventCountry "AZE"]
[SourceTitle "playchess.com"]
[Source "ChessBase"]
[SourceQuality "1"]
[TimeControl "40/5400+30:1800+30"]

1. c4 {[%emt 0:00:00]} Nf6 {[%emt 0:03:33]} 2. g3 {[%emt 0:00:37]} e5 {[%emt 0:00:24]} 3. Nc3 {[%emt 0:00:34]} c6 {[%emt 0:00:16]} 4. Nf3 {[%emt 0:01:05]} e4 {[%emt 0:00:29]} 5. Nd4 $1 {[%emt 0:00:10]} d5 {[%emt 0:00:19]} 6. cxd5 {[%emt 0:02:20]} Qb6 {[%emt 0:00:51]} 7. Nb3 {[%emt 0:00:42]} cxd5 {[%emt 0:00:04]} 8. Bg2 {[%emt 0:00:32] LiveBook: 17 Games} a5 {[%emt 0:01:03] A23: English Opening: 1...e5 2 Nc3 Nf6 3 g3 c6} (8... h5 9. d3 Bb4 10. Be3 Bxc3+ 11. bxc3 Qc6 12. Rc1 h4 13. gxh4 Rxh4 14. c4 Be6 15. cxd5 Qxd5 16. dxe4 Qxd1+ 17. Rxd1 {½-½ (49) Belozerov,A (2511)-Jumabayev,R (2548) Tomsk 2013}) 9. d3 {[%emt 0:02:12]} a4 {[%emt 0:02:55]} 10. Be3 {[%emt 0:02:08]} Qd8 $146 {[%emt 0:11:29]} ({Predecessor:} 10... Qb4 11. Nd4 a3 12. Rb1 axb2 13. Qd2 Qa5 14. Nb3 Qd8 15. dxe4 dxe4 16. Rxb2 {1-0 (24) Koestner,W (2210)-Akrill,R (1901) ICCF email 2015}) 11. Nd4 {[%emt 0:03:05]} Bb4 {[%emt 0:02:25]} 12. O-O {[%emt 0:06:46]} Bxc3 {[%emt 0:03:21]} 13. bxc3 {[%emt 0:00:06]} O-O {[%emt 0:00:49]} 14. Rb1 {[%emt 0:06:27]} Nc6 {[%emt 0:10:01]} 15. c4 {[%emt 0:15:57]} Re8 {[%emt 0:18:39]} 16. a3 {[%emt 0:12:55]} Qe7 {[%emt 0:09:26]} 17. Nxc6 {[%emt 0:12:51]} bxc6 {[%emt 0:00:36]} 18. c5 {[%emt 0:03:49]} Ba6 {[%emt 0:03:29]} 19. d4 {[%emt 0:05:56]} Reb8 {[%emt 0:11:18]} 20. Rxb8+ {[%emt 0:05:16]} Rxb8 {[%emt 0:00:13]} 21. Qxa4 {[%emt 0:00:01]} Bxe2 {[%emt 0:00:40]} 22. Re1 {[%emt 0:00:02]} Bb5 {[%emt 0:00:20]} 23. Qa5 {[%emt 0:01:03]} Qb7 {[%emt 0:03:45]} 24. a4 {[%emt 0:01:21]} Bd3 {[%emt 0:00:48]} 25. Bf4 $11 {[%emt 0:02:52]} Qb4 {[%emt 0:03:16]} 26. Qxb4 {[%emt 0:01:12]} Rxb4 {[%emt 0:00:37]} 27. Ra1 {[%emt 0:00:01]} Rb7 {[%emt 0:06:40]} 28. a5 {[%emt 0:00:02]} Ba6 {[%emt 0:01:39]} 29. Bf1 {[%emt 0:03:57]} Ra7 {[%emt 0:00:11]} 30. Rb1 {[%emt 0:02:28]} h6 {[%emt 0:02:07]} 31. Bxa6 {[%emt 0:01:13]} Rxa6 {[%emt 0:00:00]} 32. Bd2 {[%emt 0:00:01]} Kf8 {[%emt 0:03:21]} 33. Rb6 {[%emt 0:00:11]} Ra7 {[%emt 0:00:07]} 34. Rxc6 {[%emt 0:00:20]} Ke7 {[%emt 0:00:11]} 35. Rd6 {[%emt 0:02:02]} e3 {[%emt 0:00:32]} 36. Bxe3 {[%emt 0:01:27]} Rxa5 {[%emt 0:00:02]} 37. h3 {[%emt 0:01:01]} Ra2 {[%emt 0:00:30]} 38. Kg2 {[%emt 0:00:16]} Rc2 {[%emt 0:00:01]} 39. Kf3 {[%emt 0:00:40]} Ra2 {[%emt 0:02:06]} 40. g4 {[%emt 0:00:00]} Ra3 {[%emt 0:00:00]} 41. Kf4 {[%emt 0:04:39]} Ra4 {[%emt 0:02:52]} 42. h4 {[%emt 0:02:21]} g6 {[%emt 0:05:04]} 43. g5 {[%emt 0:03:35]} hxg5+ {[%emt 0:05:17]} 44. hxg5 {[%emt 0:00:04]} Nd7 {[%emt 0:00:21] Ke4} 1-0

[Event "Baku Open 2018"]
[Site "Baku"]
[Date "2018.12.01"]
[Round "8"]
[White "Guliev, Sarhan"]
[Black "Suleymanli, Aydin"]
[Result "1-0"]
[ECO "A77"]
[WhiteElo "2354"]
[BlackElo "2313"]
[Annotator "NA"]
[PlyCount "85"]
[EventDate "2018.11.24"]
[EventType "swiss"]
[EventCountry "AZE"]
[SourceTitle "playchess.com"]
[Source "ChessBase"]
[SourceQuality "1"]
[TimeControl "40/5400+30:1800+30"]

1. d4 {[%emt 0:00:00]} Nf6 {[%emt 0:00:14]} 2. c4 {[%emt 0:00:04]} c5 {[%emt 0:00:14]} 3. d5 {[%emt 0:00:30]} e6 {[%emt 0:00:11]} 4. Nc3 {[%emt 0:00:10]} exd5 {[%emt 0:00:13]} 5. cxd5 {[%emt 0:00:02]} d6 {[%emt 0:00:06]} 6. e4 {[%emt 0:03:07]} g6 {[%emt 0:00:24]} 7. Nf3 {[%emt 0:02:51]} Bg7 {[%emt 0:00:51]} 8. Be2 {[%emt 0:00:03]} O-O {[%emt 0:00:10]} 9. Nd2 {[%emt 0:00:24]} Re8 {[%emt 0:00:46]} 10. O-O {[%emt 0:00:06] LiveBook: 935 Games} Nbd7 {[%emt 0:00:05]} 11. f4 {[%emt 0:06:56] A77: Modern Benoni: Classical: 9...Re8 10 Nd2: 10...a6 and 10...Nbd7} Nb6 {[%emt 0:00:34]} 12. a4 {[%emt 0:00:44]} a5 {[%emt 0:00:08]} 13. Bb5 $146 {[%emt 0:04:51]} ({Predecessor:} 13. h3 h5 14. Qe1 Bd7 15. Qg3 Nfxd5 16. exd5 Bxc3 17. bxc3 Rxe2 18. f5 h4 {0-1 (27) Tregubov,P (2598)-Akopian,V (2675) Aix les Bains 2011}) 13... Bd7 {[%emt 0:05:04]} 14. Bxd7 {[%emt 0:04:38]} Nfxd7 {[%emt 0:01:05]} 15. Nb5 {[%emt 0:03:50]} Nb8 {[%emt 0:08:19]} 16. Ra3 {[%emt 0:02:36]} Na6 {[%emt 0:04:33]} 17. Raf3 {[%emt 0:06:08]} c4 {[%emt 0:00:57]} 18. b3 {[%emt 0:14:52]} Rc8 {[%emt 0:16:40]} (18... cxb3 $11 19. Ba3 Nxa4 20. Nxd6 {[%mdl 64] Double Attack} Nc3 21. Qxb3 {[%mdl 64] Double Attack} a4) 19. bxc4 $16 {[%emt 0:08:12]} Nxc4 {[%emt 0:29:51]} 20. Nxc4 {[%emt 0:02:25]} Rxc4 {[%emt 0:00:09]} 21. e5 {[%emt 0:00:45]} dxe5 {[%emt 0:00:18]} 22. fxe5 {[%emt 0:00:06]} Rxe5 {[%emt 0:08:19]} 23. Rxf7 {[%emt 0:03:24]} Qxd5 {[%emt 0:13:18]} 24. Bb2 {[%emt 0:01:21]} Rc5 {[%emt 0:05:57]} 25. Bxe5 {[%emt 0:05:50]} Bxe5 {[%emt 0:00:13]} 26. Rxb7 {[%emt 0:03:41]} Qxd1 {[%emt 0:00:33]} 27. Rxd1 {[%emt 0:00:02]} Rc8 {[%emt 0:00:10]} 28. Ra7 {[%emt 0:01:41]} Nc5 {[%emt 0:01:27]} 29. Rxa5 {[%emt 0:00:06]} Rf8 {[%emt 0:01:29]} 30. Ra7 {[%emt 0:00:56]} Bf4 {[%emt 0:00:11]} 31. g3 {[%emt 0:01:52]} Be3+ {[%emt 0:00:41]} 32. Kg2 {[%emt 0:00:31]} Rf2+ {[%emt 0:00:25]} 33. Kh1 {[%emt 0:00:18]} Rf8 {[%emt 0:00:09]} 34. Re7 {[%emt 0:00:37]} Bh6 {[%emt 0:00:50]} 35. a5 {[%emt 0:00:25]} Ra8 {[%emt 0:00:23]} 36. Nc7 {[%emt 0:05:21]} Rxa5 {[%emt 0:00:25]} 37. Rd8+ {[%emt 0:00:14]} Bf8 {[%emt 0:00:12]} 38. Ree8 {[%emt 0:01:13]} Ra1+ {[%emt 0:00:07]} 39. Kg2 {[%emt 0:00:02]} Ra2+ {[%emt 0:00:07]} 40. Kf3 {[%emt 0:00:00]} Ra3+ {[%emt 0:00:00]} 41. Kg4 {[%emt 0:01:55]} h5+ {[%emt 0:00:58]} 42. Kg5 {[%emt 0:00:20]} Kh7 {[%emt 0:00:58]} 43. Rxf8 {[%emt 0:00:26]} 1-0

[Event "Baku Open 2018"]
[Site "Baku"]
[Date "2018.12.01"]
[Round "8"]
[White "Davidov, Samir"]
[Black "Sevdimaliyev, Urfan"]
[Result "1-0"]
[ECO "C00"]
[WhiteElo "2314"]
[BlackElo "2386"]
[Annotator "NA"]
[PlyCount "81"]
[EventDate "2018.11.24"]
[EventType "swiss"]
[EventCountry "AZE"]
[SourceTitle "playchess.com"]
[Source "ChessBase"]
[SourceQuality "1"]
[TimeControl "40/5400+30:1800+30"]

1. e4 {[%emt 0:00:00]} e6 {[%emt 0:00:00]} 2. d3 {[%emt 0:00:00]} d5 {[%emt 0:00:01]} 3. Nd2 {[%emt 0:00:00]} c5 {[%emt 0:00:14]} 4. Be2 {[%emt 0:00:03] C00: French: Unusual White 2nd moves} (4. Ngf3 Nc6 5. g3 Nf6 6. Bg2 Be7 7. O-O b6 8. Qe2 Qc7 9. Re1 Bb7 10. e5 Nd7 11. c4 d4 12. h4 h6 13. h5 a5 14. Ne4 Ncxe5 15. Nxe5 Nxe5 16. Bf4 O-O 17. Nd2 Bxg2 18. Bxe5 Qc6 19. f3 {0-1 (45) Liang,A (2572)-Le,Q (2737) chess.com INT 2018}) 4... Nc6 {[%emt 0:00:50]} 5. c3 {[%emt 0:00:18]} Bd6 {[%emt 0:03:57]} 6. Ngf3 {[%emt 0:00:29]} Nf6 {[%emt 0:05:32] LiveBook: 12 Games} 7. Qc2 {[%emt 0:00:59]} Qc7 {[%emt 0:01:14]} 8. h3 {[%emt 0:00:16]} O-O $146 {[%emt 0:03:58]} ({Predecessor:} 8... b6 9. g4 Bd7 10. Nf1 {½-½ (10) Nahnsen,K (2004)-Brinckmann,D (1870) Kiel 2018}) 9. g4 {[%emt 0:04:26]} (9. O-O $15) 9... b5 {[%emt 0:03:53]} 10. a4 {[%emt 0:03:16]} b4 {[%emt 0:02:50]} 11. c4 {[%emt 0:02:34]} dxe4 {[%emt 0:02:54]} 12. dxe4 {[%emt 0:00:12]} b3 {[%emt 0:10:06]} 13. Qxb3 {[%emt 0:02:47]} Nb4 {[%emt 0:03:17]} 14. Bd3 {[%emt 0:07:29]} Rd8 {[%emt 0:06:36]} 15. Bb1 {[%emt 0:00:12]} Bf4 {[%emt 0:06:16]} 16. Qc3 {[%emt 0:13:24]} Bb7 {[%emt 0:06:17]} 17. O-O {[%emt 0:00:17]} e5 {[%emt 0:06:47]} 18. Re1 {[%emt 0:01:14]} h5 {[%emt 0:10:27]} 19. g5 {[%emt 0:01:42]} Nh7 {[%emt 0:00:47]} 20. Nb3 {[%emt 0:04:28]} Bxc1 {[%emt 0:02:45]} 21. Nxc1 {[%emt 0:00:26]} f6 {[%emt 0:02:50]} 22. gxf6 {[%emt 0:03:38]} gxf6 {[%emt 0:00:17]} 23. Kh2 {[%emt 0:01:49]} Qd7 {[%emt 0:02:16]} 24. Qe3 {[%emt 0:00:15]} Bc8 {[%emt 0:01:41]} 25. Rg1+ {[%emt 0:01:24]} Kh8 {[%emt 0:00:10]} 26. Nh4 {[%emt 0:02:23]} Ng5 {[%emt 0:01:17]} 27. Ra3 {[%emt 0:00:38]} Qd2 {[%emt 0:07:06]} 28. Ng6+ {[%emt 0:17:04]} Kh7 {[%emt 0:00:07]} 29. Nxe5 {[%emt 0:00:59]} Nxh3 {[%emt 0:05:26]} 30. Nf7 {[%emt 0:02:47]} Nxg1 $11 {[%emt 0:01:32]} 31. e5+ {[%emt 0:01:07]} Kg8 {[%emt 0:01:57]} 32. Nxd8 {[%emt 0:00:17]} Qxe3 {[%emt 0:00:42]} 33. Rxe3 {[%emt 0:00:10]} Bg4 {[%emt 0:00:41]} 34. e6 {[%emt 0:05:58]} Rxd8 {[%emt 0:00:49]} 35. e7 {[%emt 0:00:09]} Nf3+ {[%emt 0:01:19]} 36. Kg3 {[%emt 0:00:37]} Re8 {[%emt 0:00:34]} 37. Bg6 {[%emt 0:00:18]} Rxe7 {[%emt 0:00:25]} 38. Rxe7 {[%emt 0:00:05]} Ne5 {[%emt 0:00:16]} 39. Be4 {[%emt 0:00:34]} Nxc4 {[%emt 0:00:44]} 40. f3 {[%emt 0:00:00]} Kf8 {[%emt 0:00:00]} 41. Rxa7 {[%emt 0:00:35]} 1-0

[Event "Baku Open 2018"]
[Site "Baku"]
[Date "2018.12.01"]
[Round "8"]
[White "Gasanov, Zaur"]
[Black "Aliyev, Ravan"]
[Result "0-1"]
[ECO "C08"]
[WhiteElo "2195"]
[BlackElo "2351"]
[Annotator "NA"]
[PlyCount "146"]
[EventDate "2018.11.24"]
[EventType "swiss"]
[EventCountry "AZE"]
[SourceTitle "playchess.com"]
[Source "ChessBase"]
[SourceQuality "1"]
[TimeControl "40/5400+30:1800+30"]

1. e4 {[%emt 0:00:00]} e6 {[%emt 0:01:55]} 2. d4 {[%emt 0:00:00]} d5 {[%emt 0:00:04]} 3. Nd2 {[%emt 0:00:13]} c5 {[%emt 0:00:42]} 4. exd5 {[%emt 0:01:19]} exd5 {[%emt 0:00:11]} 5. Bb5+ {[%emt 0:00:08]} Nc6 {[%emt 0:00:12]} 6. Ngf3 {[%emt 0:00:25]} Bd6 {[%emt 0:04:38]} 7. dxc5 {[%emt 0:02:48]} Qe7+ {[%emt 0:10:13] LiveBook: 7 Games} 8. Be2 {[%emt 0:00:52]} Bxc5 {[%emt 0:00:02]} 9. Nb3 {[%emt 0:01:09]} Bb6 {[%emt 0:01:05]} 10. O-O {[%emt 0:01:24]} Nf6 {[%emt 0:00:52]} 11. a4 {[%emt 0:11:11]} a6 {[%emt 0:06:54]} 12. Bd3 {[%emt 0:08:01]} O-O {[%emt 0:03:57]} 13. Re1 {[%emt 0:01:28]} Qd8 {[%emt 0:08:25]} 14. Be3 {[%emt 0:07:07]} Bc7 {[%emt 0:02:52]} 15. h3 $11 {[%emt 0:07:13]} h6 {[%emt 0:10:35]} 16. Nbd4 {[%emt 0:18:00]} Re8 {[%emt 0:02:46]} 17. c3 {[%emt 0:08:45]} Ne4 {[%emt 0:06:44]} 18. Qc2 {[%emt 0:08:35]} Qd6 {[%emt 0:08:27]} 19. Rad1 {[%emt 0:11:19]} Qg6 {[%emt 0:09:06]} 20. Kf1 {[%emt 0:01:01]} Qh5 {[%emt 0:01:58]} 21. Ng1 {[%emt 0:01:56]} Bd7 {[%emt 0:04:15]} 22. Nxc6 {[%emt 0:05:19]} bxc6 {[%emt 0:02:01]} 23. Bxe4 Rxe4 {[%emt 0:00:03]} 24. Rd4 {[%emt 0:02:12]} Bf5 {[%emt 0:02:37]} 25. Qd1 {[%emt 0:01:20]} Qg6 {[%emt 0:06:05]} 26. Nf3 {[%emt 0:00:23]} Qf6 {[%emt 0:00:37]} 27. Rxe4 {[%emt 0:00:32]} Bxe4 {[%emt 0:00:01]} 28. Nd2 {[%emt 0:00:30]} Bd3+ {[%emt 0:01:47]} 29. Kg1 {[%emt 0:00:06]} Rb8 {[%emt 0:01:01]} 30. Nf1 {[%emt 0:01:06]} Be4 {[%emt 0:03:31]} 31. f3 {[%emt 0:00:30]} Bf5 {[%emt 0:00:10]} 32. Qd2 {[%emt 0:00:35]} Qg6 {[%emt 0:01:05]} 33. Kf2 {[%emt 0:00:30]} Bc2 {[%emt 0:00:20]} 34. b4 {[%emt 0:00:16]} Bxa4 {[%emt 0:00:19]} 35. Bf4 {[%emt 0:00:39]} Bb6+ {[%emt 0:00:50]} 36. Be3 {[%emt 0:00:03]} Bc7 {[%emt 0:01:01]} 37. Bf4 {[%emt 0:00:14]} Bb6+ {[%emt 0:00:21]} 38. Be3 {[%emt 0:00:17]} Qc2 {[%emt 0:00:41]} 39. Qxc2 {[%emt 0:00:16]} Bxc2 {[%emt 0:00:02]} 40. Bxb6 {[%emt 0:00:00]} Rxb6 {[%emt 0:00:00]} 41. Re8+ {[%emt 0:01:26]} Kh7 {[%emt 0:01:37]} 42. Ke3 {[%emt 0:01:16]} a5 {[%emt 0:03:09]} 43. bxa5 {[%emt 0:01:15]} Ra6 {[%emt 0:00:07]} 44. Re7 {[%emt 0:06:10]} Kg6 {[%emt 0:03:15]} 45. Rc7 {[%emt 0:00:28]} Ba4 {[%emt 0:00:11]} 46. Ng3 {[%emt 0:01:01]} Rxa5 {[%emt 0:01:21]} 47. Ne2 {[%emt 0:02:03]} Kf6 {[%emt 0:00:49]} 48. Nf4 {[%emt 0:01:49]} g6 {[%emt 0:13:24]} 49. Nd3 {[%emt 0:01:13]} Bb5 {[%emt 0:06:33]} 50. Nb4 {[%emt 0:06:07]} Ra3 {[%emt 0:00:21]} 51. Kd4 {[%emt 0:06:43]} Ke6 {[%emt 0:01:11]} 52. Nxc6 {[%emt 0:02:30]} Kd6 {[%emt 0:00:08]} 53. Rxf7 {[%emt 0:00:06]} Bxc6 {[%emt 0:00:24]} 54. Rf6+ {[%emt 0:00:07]} Kc7 {[%emt 0:00:18]} 55. Rxg6 {[%emt 0:00:08]} h5 {[%emt 0:02:53]} 56. Rg5 {[%emt 0:01:52]} h4 {[%emt 0:01:49]} 57. Rg4 {[%emt 0:05:18]} Kb6 {[%emt 0:01:56]} 58. Kd3 {[%emt 0:01:11]} Bb5+ {[%emt 0:00:35]} 59. Kc2 {[%emt 0:00:33]} Bc4 {[%emt 0:00:27]} 60. Rxh4 {[%emt 0:00:27]} Ra2+ {[%emt 0:00:01]} 61. Kb1 {[%emt 0:00:31]} Rxg2 {[%emt 0:00:04]} 62. Rf4 {[%emt 0:00:25]} Kb5 {[%emt 0:00:07]} 63. Rf8 {[%emt 0:00:19]} Rh2 {[%emt 0:00:50]} 64. Rh8 {[%emt 0:00:33]} Ka4 {[%emt 0:00:11]} 65. Rb8 {[%emt 0:00:09]} Rxh3 {[%emt 0:00:10]} 66. Kb2 {[%emt 0:00:43]} Rxf3 {[%emt 0:00:10]} 67. Ra8+ {[%emt 0:00:03]} Kb5 {[%emt 0:00:04]} 68. Rb8+ {[%emt 0:00:06]} Kc6 {[%emt 0:00:06]} 69. Rh8 {[%emt 0:00:08]} Rf2+ {[%emt 0:00:16]} 70. Ka3 {[%emt 0:00:36]} Ra2+ {[%emt 0:00:25]} 71. Kb4 {[%emt 0:00:05]} Rb2+ {[%emt 0:00:05]} 72. Ka4 {[%emt 0:00:06]} Rb3 {[%emt 0:00:55]} 73. Rh3 {[%emt 0:00:15]} Kc5 {[%emt 0:00:05]} 0-1

[Event "Baku Open 2018"]
[Site "Baku"]
[Date "2018.12.02"]
[Round "9"]
[White "Eynullayev, Altay"]
[Black "Mgeladze, Tamaz"]
[Result "1/2-1/2"]
[ECO "E73"]
[WhiteElo "2180"]
[BlackElo "2395"]
[Annotator "NA"]
[PlyCount "72"]
[EventDate "2018.11.24"]
[EventType "swiss"]
[EventCountry "AZE"]
[SourceTitle "playchess.com"]
[Source "ChessBase"]
[SourceQuality "1"]
[TimeControl "40/5400+30:1800+30"]

1. d4 {[%emt 0:00:00]} Nf6 {[%emt 0:00:00]} 2. c4 {[%emt 0:00:00]} g6 {[%emt 0:00:03]} 3. Nc3 {[%emt 0:00:00]} Bg7 {[%emt 0:00:05]} 4. e4 {[%emt 0:00:00]} d6 {[%emt 0:00:04]} 5. Be2 {[%emt 0:00:00]} O-O {[%emt 0:00:07]} 6. Be3 {[%emt 0:00:02]} c5 {[%emt 0:00:04]} 7. d5 {[%emt 0:00:05]} e6 {[%emt 0:00:36]} 8. Nf3 {[%emt 0:00:08] E73: King's Indian: Averbakh Variation without 6...c5} exd5 {[%emt 0:00:04]} 9. cxd5 {[%emt 0:00:05]} Bg4 {[%emt 0:00:15]} (9... Re8 10. Nd2 c4 11. O-O Na6 12. Bf3 b6 13. Re1 Nc5 14. Bxc5 bxc5 15. e5 Rxe5 16. Rxe5 dxe5 17. Nxc4 {½-½ (23) Howell,D (2687)-Jones,G (2670) Hull 2018}) 10. Nd2 {[%emt 0:00:04]} Bxe2 {[%emt 0:00:07]} 11. Qxe2 {[%emt 0:00:04]} Re8 {[%emt 0:00:16]} 12. O-O {[%emt 0:00:16]} Na6 {[%emt 0:01:49]} 13. Kh1 {[%emt 0:00:25]} Nc7 {[%emt 0:01:33]} 14. a4 {[%emt 0:00:09]} Nd7 {[%emt 0:03:46]} 15. Rae1 $146 {[%emt 0:05:45]} ({Predecessor:} 15. f3 f5 {1-0 (32) Lye,L (2270)-Annaberdiev,M (2501) Budapest 2018}) 15... a6 {[%emt 0:01:57]} 16. Nc4 {[%emt 0:28:18]} Qe7 {[%emt 0:06:40]} 17. Bf4 {[%emt 0:03:59]} Ne5 {[%emt 0:00:39]} 18. Bxe5 {[%emt 0:13:11]} Bxe5 {[%emt 0:00:10]} 19. Nb6 {[%emt 0:00:03]} Rad8 {[%emt 0:02:17]} 20. f4 {[%emt 0:00:21]} Bxc3 {[%emt 0:16:31]} 21. bxc3 {[%emt 0:00:06]} f5 {[%emt 0:00:02]} 22. Qc4 {[%emt 0:05:02]} fxe4 {[%emt 0:00:30]} 23. Re3 {[%emt 0:00:08]} Qf6 {[%emt 0:15:00]} 24. Rxe4 {[%emt 0:04:17]} Rxe4 {[%emt 0:00:33]} 25. Qxe4 {[%emt 0:00:01]} Re8 {[%emt 0:00:01]} 26. Qf3 {[%emt 0:01:04]} Qf5 $11 {[%emt 0:03:51]} 27. Kg1 {[%emt 0:14:02]} Qe4 {[%emt 0:04:10]} 28. f5 {[%emt 0:04:49]} Qxf3 {[%emt 0:11:51]} 29. Rxf3 {[%emt 0:00:07]} Re1+ {[%emt 0:00:08]} 30. Kf2 {[%emt 0:00:53]} Rb1 {[%emt 0:00:02]} 31. fxg6 {[%emt 0:06:14]} hxg6 {[%emt 0:00:29]} 32. a5 {[%emt 0:02:38]} Kg7 {[%emt 0:04:33]} 33. Re3 {[%emt 0:01:10]} Kf8 {[%emt 0:01:57]} 34. Rf3+ {[%emt 0:00:31]} Kg7 {[%emt 0:01:46]} 35. Re3 {[%emt 0:00:32]} Kf8 {[%emt 0:06:43]} 36. Rf3+ {[%emt 0:00:06]} Kg7 {[%emt 0:00:06]} 1/2-1/2